Cogmind - Beta 15 @@@ ROGUE MODE // 2025.06.30 @ 00:08:35 Player: 3.14 Result: Destroyed by B-86 Titan with Matter Neutralizer Performance ------------- Evolutions (6) 3000 Regions Visited (20) 4000 Robots Destroyed (290) 1450 Value Destroyed (12623) 12623 Prototype IDs (31) 620 Alien Tech Used (2) 400 Bonus (5310) 5310 TOTAL SCORE: 27403 Bonus ------- High Alert Combat Kills 2295 Follower Combat Kills 325 Entered Garrisons 600 Entered DSFs 1000 Acquired ECA 300 Met Warlord at Base 500 MAIN.C Attacked Warlord 500 Warlord Defense Kills 140 Friendly Fire -350 Cogmind --------- Core Integrity 0/1150 Matter 154/300 Energy 99/100 System Corruption 3% Temperature Cool (9) Movement Core (50) Location -4/Warlord Parts ------- > --- POWER (2) -------- (None) > --- PROPULSION (6) --- (None) > --- UTILITY (7) ------ (None) > --- WEAPON (4) ------- (None) > --- INVENTORY (5) ---- Armored Huge Wheel Vortex Cannon (25) Vortex Driver (30) Peak State ------------ > --- POWER ------------ Fusion Reactor Antimatter Reactor > --- PROPULSION ------- Heavy Treads Improved Heavy Treads Improved Heavy Treads > --- UTILITY ---------- Advanced Cooling System Huge Storage Unit Armor Integrity Analyzer Transmission Jammer Heavy Insulated Plating Advanced Focal Shield > --- WEAPON ----------- Coil Gun Bore Cannon Enhanced Gauss Cannon Force Lance > --- INVENTORY -------- Reinforced Fission Core Improved Heavy Treads Improved Heavy Treads Improved Cooling System Advanced Energy Well High-capacity Matter Pod Matter Compressor Advanced Sensor Array Encrypted Comm Array Improved Thermal Shield Advanced Hacking Suite High-powered Tractor Beam Dimensional Node Initializer Transdimensional Reconstructor Improved Lightning Gun Phase Cannon Gauss Cannon Heavy Flak Cannon Heavy Flak Cannon Heavy Flak Cannon Heavy Flak Cannon Rocket Launcher Improved Grenade Launcher [Rating: 123] Favorites ----------- Power Heavy Ion Engine Engine Heavy Ion Engine Power Core Neutrino Core Reactor Fusion Reactor Propulsion Light Treads Treads Light Treads Wheel Armored Wheel Utility Huge Storage Unit Device Advanced Heat Sink Storage Huge Storage Unit Processor Armor Integrity Analyzer Hackware System Shield Protection Heavy Armor Plating Weapon Enhanced Autogun Energy Gun EM Pulse Gun Energy Cannon Proton Cannon Ballistic Gun Enhanced Autogun Ballistic Cannon Heavy Flak Cannon Launcher Improved Grenade Launcher Slashing Weapon Katana Piercing Weapon Force Lance Build | -11 -10 -9 -8 -8 -8 -8 -7 -7 -7 -6 -6 -5 -5 -5 -5 -4 -4 -4 -4 -4 ------- Run | Yrd Mat Mat Mat Gar Mat Gar Fac DSF Gar Fac DSF Fac Upp Upp Zhi Pro Fac Upp Upp War Slots Evolved 12 | . . 2 2 . . . 2 . . 2 . 2 . . . . 2 . . . Power 1 | . . . . . . . . . . 1 . . . . . . . . . . Propulsion 4 | . . 1 1 . . . . . . . . . . . . . 2 . . . Utility 5 | . . 1 . . . . 2 . . 1 . 1 . . . . . . . . Weapon 2 | . . . 1 . . . . . . . . 1 . . . . . . . . Parts Attached 180 | 8 9 18 27 6 11 16 2 10 22 . 3 13 3 7 3 1 11 2 1 7 Power 14 | 1 2 . 2 . . 1 . . 2 . 1 . 1 . 1 . 2 . . 1 Engine 8 | 1 2 . 2 . . 1 . . 1 . 1 . . . . . . . . . Core 3 | . . . . . . . . . 1 . . . 1 . . . 1 . . . Reactor 3 | . . . . . . . . . . . . . . . 1 . 1 . . 1 Propulsion 49 | 2 . 9 10 4 5 6 . 1 7 . . 1 . 1 . . 3 . . . Treads 37 | 2 . 7 8 4 4 2 . 1 6 . . 1 . 1 . . 1 . . . Leg . | . . . . . . . . . . . . . . . . . . . . . Wheel 12 | . . 2 2 . 1 4 . . 1 . . . . . . . 2 . . . Hover . | . . . . . . . . . . . . . . . . . . . . . Flight . | . . . . . . . . . . . . . . . . . . . . . Utility 59 | 2 3 4 2 2 1 4 2 6 8 . 1 7 2 3 1 1 4 2 1 3 Device 28 | 1 1 2 1 . . 1 . 4 6 . . 2 2 2 . . 2 2 1 1 Storage 7 | 1 1 1 . . 1 . . . . . . 2 . . . . 1 . . . Processor 9 | . 1 1 1 . . 1 . . . . 1 2 . . . 1 . . . 1 Hackware 1 | . . . . . . . . . . . . 1 . . . . . . . . Protection 14 | . . . . 2 . 2 2 2 2 . . . . 1 1 . 1 . . 1 Artifact . | . . . . . . . . . . . . . . . . . . . . . Weapon 58 | 3 4 5 13 . 5 5 . 3 5 . 1 5 . 3 1 . 2 . . 3 Energy Gun 8 | 2 1 . 3 . . . . . . . . 2 . . . . . . . . Energy Cannon 4 | . . . . . . 1 . . . . . . . 1 . . . . . 2 Ballistic Gun 19 | 1 1 2 6 . 4 1 . 1 2 . . . . 1 . . . . . . Ballistic Cannon 21 | . 1 2 3 . 1 1 . 2 3 . 1 3 . 1 1 . 1 . . 1 Launcher 4 | . 1 1 1 . . 1 . . . . . . . . . . . . . . Special Weapon . | . . . . . . . . . . . . . . . . . . . . . Impact Weapon . | . . . . . . . . . . . . . . . . . . . . . Slashing Weapon 1 | . . . . . . 1 . . . . . . . . . . . . . . Piercing Weapon 1 | . . . . . . . . . . . . . . . . . 1 . . . Special Melee Weapon . | . . . . . . . . . . . . . . . . . . . . . Unidentified Prototypes 19 | . . . 6 . . . . . 1 . . 2 . . 3 . 1 . . 6 Corrupted Parts 1 | . . . . . . . . . . . . . . . . . . 1 . . System Corruption 2 | . . . . . . . . . . . . . . . . . . 2 . . Parts Lost 17 | . 1 . 1 1 . 4 . . 2 . . 2 1 . . . . 2 . 3 Power 3 | . . . . . . 1 . . . . . 1 1 . . . . . . . Propulsion 4 | . . . . . . 2 . . 1 . . . . . . . . . . 1 Utility 6 | . 1 . . 1 . . . . . . . 1 . . . . . 2 . 1 Weapon 4 | . . . 1 . . 1 . . 1 . . . . . . . . . . 1 Highest Loss Streak 2 | . 1 . 1 1 . 2 . . 2 . . 2 1 . . . . 1 . 2 To Critical Strikes . | . . . . . . . . . . . . . . . . . . . . . Average Backups 20 | 2 11 19 23 22 23 23 23 24 22 20 20 20 20 21 21 22 22 21 20 20 Power . | . 1 1 1 1 1 . 1 1 1 . . . . . . . . 1 1 . Propulsion 4 | 1 2 5 7 6 6 6 6 6 3 4 4 4 4 3 3 3 2 3 3 2 Utility 6 | . 1 3 5 7 8 7 7 8 9 8 7 6 8 8 8 8 8 7 6 6 Weapon 8 | . 7 9 9 8 8 8 9 8 8 8 8 8 8 8 8 8 8 7 7 7 Tool/Special . | . . . . . . . . . . . . . . . . . . . . . Unused Backups 65 | . 3 7 17 2 2 3 . 5 14 . . 3 . . . . 1 . . 8 Power 2 | . . . 1 . . . . . . . . . . . . . 1 . . . Propulsion 19 | . 1 2 5 1 1 3 . 2 3 . . . . . . . . . . 1 Utility 23 | . 1 . 2 . 1 . . 2 10 . . 3 . . . . . . . 4 Weapon 20 | . 1 5 9 1 . . . 1 1 . . . . . . . . . . 2 Tool/Special 1 | . . . . . . . . . . . . . . . . . . . . 1 Average Slot Usage (%) 90 | . 89 99 99 95 90 97 92 94 89 76 80 82 87 87 87 87 83 77 84 77 Engine 7 | . 14 11 9 9 9 9 7 7 6 6 12 9 . . . . . . . . Core 1 | . . . . . . . . . . 6 . . 9 11 7 5 3 . . . Reactor 1 | . . . . . . . . . . . . . . . 2 5 6 10 10 7 Treads 16 | . 27 27 18 18 18 18 15 14 14 13 13 11 11 11 11 11 14 5 5 4 Wheel 8 | . . 5 18 18 18 17 15 15 9 . . . . . . . . 10 10 9 Device 10 | . 3 10 9 4 . 5 7 8 13 16 14 12 23 17 16 16 15 15 26 20 Storage 8 | . 14 11 9 9 9 9 7 7 7 6 6 5 5 5 5 5 5 5 5 4 Processor 6 | . 1 11 9 4 . 7 7 7 4 . 5 11 11 11 11 11 9 5 5 7 Protection 2 | . . . . 4 9 3 7 8 6 6 6 3 . 4 5 5 5 4 . 1 Energy Gun 3 | . 24 . . . . . . . . . . 5 2 5 3 . 2 . . . Ballistic Gun 9 | . 1 11 14 18 18 24 15 17 6 6 6 1 . 4 5 5 5 5 4 1 Ballistic Cannon 10 | . 1 10 11 9 9 1 . 5 12 13 13 14 19 11 11 17 12 15 15 17 Peak Build Rating 123 | 7 8 18 32 35 35 42 46 50 77 83 87 95 94 97 102 101 123 113 112 123 Average Rating 53 | 5 6 13 25 33 33 37 44 46 59 82 85 91 91 95 99 100 115 110 111 112 On Entrance 63 | . 7 8 18 32 35 32 40 46 50 77 83 87 87 94 97 100 100 111 109 112 Naked Turns 12 | . . . . . . . . . . . . . . . . . . . . 12 Heaviest Build 170 | 15 90 94 104 114 114 114 113 113 131 134 143 150 133 136 145 145 160 161 147 170 Greatest Support 220 | 40 40 60 24 24 24 50 24 24 150 150 150 150 145 145 145 145 220 75 75 75 Greatest Overweight (x) 9 | . 2 3 5 4 5 4 4 4 9 . . . . . . . 5 2 1 3 Average Overweight (x) 2 | . 1 1 3 4 4 3 4 4 3 . . . . . . . . 1 1 1 Largest Inventory Capacity 25 | 8 25 25 25 25 25 25 25 25 25 25 25 25 25 25 25 25 25 25 25 25 Average Capacity 24 | 6 22 25 25 25 25 25 25 25 25 25 25 25 25 25 25 25 25 25 25 24 Most Carried 25 | 6 17 25 25 25 25 25 24 25 25 24 25 25 25 25 25 25 25 25 24 25 Average Carried 22 | 2 11 19 24 24 24 24 23 24 24 23 24 24 24 24 24 25 24 24 23 23 Final Capacity 25 | 8 25 25 25 25 25 25 25 25 25 25 25 25 25 25 25 25 25 25 25 5 Final Carried 25 | 5 16 25 25 25 25 25 23 25 25 23 25 25 25 25 25 25 25 23 24 4 Class Distribution -------------------- 23% | Scavenger-Tank 18% | Mutant 16% | Gunner 14% | Tank 10% | Derelict-Tank 7% | Scavenger-Gunner 5% | Scavenger-Mutant Dominant Class ---------------- Mutant | -10/Materials Mutant | -9/Materials Gunner | -8/Materials Gunner | -8/Garrison Tank | -8/Materials Scavenger-Gunner | -8/Garrison Scavenger-Gunner | -7/Factory Scavenger-Gunner | -7/DSF Tank | -7/Garrison Tank | -6/Factory Scavenger-Tank | -6/DSF Scavenger-Tank | -5/Factory Scavenger-Tank | -5/Upper Caves Derelict-Tank | -5/Upper Caves Derelict-Tank | -5/Zhirov Derelict-Tank | -4/Proximity Caves Scavenger-Tank | -4/Factory Tank | -4/Upper Caves Derelict-Tank | -4/Upper Caves Scavenger-Tank | -4/Warlord Resources | -11 -10 -9 -8 -8 -8 -8 -7 -7 -7 -6 -6 -5 -5 -5 -5 -4 -4 -4 -4 -4 ----------- Run | Yrd Mat Mat Mat Gar Mat Gar Fac DSF Gar Fac DSF Fac Upp Upp Zhi Pro Fac Upp Upp War Matter Collected 11565 | 94 332 764 1569 1483 703 1063 . 572 743 . 489 1486 375 71 120 116 322 596 196 471 Remotely 1189 | . . . . . . . . 150 91 . 204 390 92 . . . . 262 . . Salvage Created 12795 | 44 571 970 1663 1349 1205 1586 . 589 1166 . 605 1627 144 . 170 30 311 439 173 153 Parts 619 | 9 42 64 101 89 51 67 . 33 55 . 17 53 4 . 3 . 7 8 5 11 Haulers Intercepted 20 | . 2 3 6 . 3 . . 1 . . 2 3 . . . . . . . . Recyclers Shooed 14 | . 2 3 4 . 1 . . . . . . 4 . . . . . . . . Parts Field Recycled . | . . . . . . . . . . . . . . . . . . . . . Retrieved Matter . | . . . . . . . . . . . . . . . . . . . . . Parts Self-Destructed 22 | . . . . . . . . . . . . . 6 . 3 . . 8 5 . Prevented 2 | . . . . . . . . . . . . . . . . . . . 2 . Kills | -11 -10 -9 -8 -8 -8 -8 -7 -7 -7 -6 -6 -5 -5 -5 -5 -4 -4 -4 -4 -4 ------- Run | Yrd Mat Mat Mat Gar Mat Gar Fac DSF Gar Fac DSF Fac Upp Upp Zhi Pro Fac Upp Upp War Combat Hostiles Destroyed 231 | . 12 22 36 38 17 22 . 11 17 . 9 22 3 . . 1 3 8 6 4 Guns 102 | . 7 4 14 27 9 18 . 9 2 . 2 8 . . . . . 1 1 . Cannons 100 | . . 14 19 11 8 4 . 2 7 . 7 10 3 . . 1 3 7 2 2 AOE 29 | . 5 4 3 . . . . . 8 . . 4 . . . . . . 3 2 Classes Destroyed 20 | 1 8 1 1 4 . 1 . 1 . . . . 1 . . . . . . 2 Worker 8 | . 1 2 3 . . . . . . . . 2 . . . . . . . . Builder 4 | . 1 1 . . . . . . . . . 1 . . . . 1 . . . Tunneler 3 | 2 . . 1 . . . . . . . . . . . . . . . . . Hauler 20 | . 2 3 6 . 3 . . 1 . . 2 3 . . . . . . . . Recycler 18 | . 2 2 2 . 6 . . . . . . 5 . . . . 1 . . . Operator 2 | . 1 . . . . . . . . . . 1 . . . . . . . . Watcher 2 | . 1 1 . . . . . . . . . . . . . . . . . . Swarmer 64 | . 9 4 10 10 5 . . 3 9 . 3 5 1 . . . . . 3 2 Grunt 91 | . 3 14 16 11 8 11 . 2 2 . . 14 1 . . . . 7 2 . Brawler 2 | . . . . 1 1 . . . . . . . . . . . . . . . Duelist 7 | . . . . 4 . 2 . . . . . . . . . . . . 1 . Sentry 33 | . . 4 9 6 3 6 . . 2 . . . 1 . . 1 . 1 . . Specialist 8 | . . . . 1 . . . 4 1 . 2 . . . . . . . . . Hunter 11 | . . . 1 1 . . . 1 3 . 3 . . . . . 2 . . . Programmer 9 | . . . . 4 . 2 . . . . . 3 . . . . . . . . Heavy 3 | . . . . . . . . 1 . . 1 . . . . . 1 . . . Behemoth 1 | . . . . . . 1 . . . . . . . . . . . . . . Decomposer 1 | . . . . . . . . . . . . . 1 . . . . . . . Samaritan 2 | . . . . . . . . . . . . . 2 . . . . . . . Tinkerer 3 | . . . . . . . . . . . . . . . . . . . . 3 Surgeon 1 | . . . . . . . . . . . . . . . . . . . . 1 Thug 2 | . . . . . . . . . . . . . . . . . . . . 2 Guerrilla 1 | . . . . . . . . . 1 . . . . . . . . . . . Best Kill Streak 14 | 1 5 8 6 6 6 5 . 4 11 . 4 14 3 . . 1 2 4 6 5 Combat Bots Only 11 | . 3 6 5 6 5 5 . 4 11 . 4 10 3 . . 1 2 4 6 2 Max Kills in Single Turn 3 | 1 2 3 3 2 2 2 . 2 3 . 2 2 1 . . 1 1 2 2 2 Gunslinging 1 | . . . . . . 1 . . . . . . . . . . . . . . Exploded 3 | . 1 2 3 . . . . . 3 . . 2 . . . . . . 2 1 Melee . | . . . . . . . . . . . . . . . . . . . . . Uniques/NPCs Destroyed . | . . . . . . . . . . . . . . . . . . . . . Combat | -11 -10 -9 -8 -8 -8 -8 -7 -7 -7 -6 -6 -5 -5 -5 -5 -4 -4 -4 -4 -4 -------- Run | Yrd Mat Mat Mat Gar Mat Gar Fac DSF Gar Fac DSF Fac Upp Upp Zhi Pro Fac Upp Upp War Hostile Shots Fired 1137 | . 37 93 113 106 39 82 . 60 160 . 68 102 16 . . 10 26 54 14 157 Missed 326 | . 9 24 40 32 6 21 . 29 47 . 16 34 2 . . 2 8 9 4 43 Hits 811 | . 28 69 73 74 33 61 . 31 113 . 52 68 14 . . 8 18 45 10 114 Melee 18 | . . . . 5 1 2 . . . . . . . . . . . . 1 9 Projectile 793 | . 28 69 73 69 32 59 . 31 113 . 52 68 14 . . 8 18 45 9 105 AOE 2 | . . . . . . . . . . . . . . . . . . . . 2 Critical Strikes 33 | . . 1 5 2 . 2 . . 2 . . 5 . . . . . 4 1 11 Actively Blocked 1 | . . . . . . . . . 1 . . . . . . . . . . . Part Disruptions 1 | . . . . . . . . . . . . . . . . . . . . 1 Damage Taken 12753 | . 407 588 754 906 438 1121 . 624 1176 . 699 1385 266 . . 138 429 707 170 2945 Core 1950 | . 21 85 134 80 30 200 . 66 135 . 26 73 24 . . . 9 34 34 999 Absorbed by Shields 1200 | . . 221 296 251 . . . . 432 . . . . . . . . . . . Reduced by Siege Mode 40 | . . . . . . . . . . . . . . . . . . 40 . . Ignored by Resistances 959 | . . . . . . . . . 23 . 197 90 . . . 59 197 251 33 109 Regen/Repaired (Parts) 483 | . 263 91 . . 101 . . . . . . . . . . . . . . 28 Core Remaining (%) 77 | 100 91 78 . . . 19 . . 71 . 96 . . . . 90 . . . . Volleys Fired 643 | 15 37 61 95 98 46 75 . 34 30 . 22 59 10 1 . 4 10 17 8 21 Largest 4 | 1 2 2 3 3 3 3 . 3 3 . 3 4 4 4 . 4 4 4 4 4 Hottest 219 | 20 80 53 93 87 87 85 . 105 110 . 114 200 168 219 . 162 185 169 169 176 Shots Fired 1774 | 15 69 112 280 279 133 193 . 102 75 . 66 200 40 4 . 16 40 62 26 62 Gun 1014 | 15 65 68 160 181 90 180 . 90 21 . 22 81 . 2 . 4 15 14 6 . Cannon 736 | . 3 38 118 98 43 11 . 12 49 . 44 119 40 2 . 12 25 48 18 56 Launcher 24 | . 1 6 2 . . 2 . . 5 . . . . . . . . . 2 6 Special . | . . . . . . . . . . . . . . . . . . . . . Kinetic 1612 | 15 10 106 278 279 133 188 . 102 70 . 66 131 40 2 . 16 35 62 24 55 Thermal 1 | . . . . . . . . . . . . . . 1 . . . . . . Explosive 24 | . 1 6 2 . . 2 . . 5 . . . . . . . . . 2 6 Electromagnetic 136 | . 58 . . . . 3 . . . . . 69 . 1 . . 5 . . . Entropic 1 | . . . . . . . . . . . . . . . . . . . . 1 Robot Hit Streak 30 | 5 6 18 16 30 13 27 . 11 10 . 8 18 8 . . 7 7 14 11 16 Robot Miss Streak 8 | 2 3 3 6 5 6 4 . 3 3 . 3 7 8 . . 1 6 4 5 8 Penetration Max 2 | . . . . . . . . . 1 . . 1 . . . . 1 1 1 2 Secondary Targets 9 | . 1 . . . . 5 . 3 . . . . . . . . . . . . Max Gunslinging Chain 1 | . 1 . . . . 1 . 1 . . . . . . . . . . . . Shots Hit Robots 1156 | 11 39 79 191 138 70 159 . 63 70 . 47 118 26 . 3 13 26 40 19 44 Core Hits 661 | 6 26 47 91 67 37 68 . 23 39 . 29 73 22 . 2 5 15 25 14 72 Critical Kills 10 | . . . . 1 . 1 . . . . 1 . . . . 1 . 4 1 1 Critical Parts Destroyed 11 | . . . 1 . 1 1 . . . . . . . . . 1 . 4 2 1 Critical Strikes 56 | . . 2 3 2 2 7 . 1 5 . 3 8 . . . 3 1 11 3 5 Destroy 24 | . . . 1 1 1 2 . . . . 1 . . . . 3 . 8 3 4 Blast 23 | . . 2 2 1 1 . . 1 1 . 2 8 . . . . 1 3 . 1 Sever 9 | . . . . . . 5 . . 4 . . . . . . . . . . . Melee Attacks 71 | . . . . . . 25 . . 27 . . . . 1 3 . 2 . . 13 Impact . | . . . . . . . . . . . . . . . . . . . . . Slashing 56 | . . . . . . 25 . . 27 . . . . 1 3 . . . . . Piercing 15 | . . . . . . . . . . . . . . . . . 2 . . 13 Sneak Attacks 1 | . . . . . . . . . 1 . . . . . . . . . . . Combat Hostiles . | . . . . . . . . . . . . . . . . . . . . . Follow-up Attacks . | . . . . . . . . . . . . . . . . . . . . . Damage Inflicted 29749 | 116 988 1465 3644 2883 1428 3293 . 1166 3505 . 1060 3912 639 . 205 327 752 1107 841 2418 Guns 11007 | 112 445 476 1799 1796 886 1927 . 956 236 . 353 1363 . . . 60 145 283 170 . Cannons 11511 | . 53 586 1680 1087 542 197 . 210 726 . 707 1961 590 . . 267 434 824 395 1252 Explosions 3668 | . 484 331 149 . . . . . 770 . . 536 . . . . . . 276 1122 Melee 3147 | . . . . . . 1169 . . 1773 . . . . . 205 . . . . . Ramming 416 | 4 6 72 16 . . . . . . . . 52 49 . . . 173 . . 44 Kinetic 20895 | 112 79 1062 3479 2883 1428 2124 . 1166 962 . 1060 2165 590 . . 327 534 1107 565 1252 Thermal 714 | . 355 . . . . . . . . . . 359 . . . . . . . . Explosive 2825 | . . 331 149 . . . . . 770 . . 177 . . . . . . 276 1122 Electromagnetic 1752 | . 548 . . . . . . . . . . 1159 . . . . 45 . . . Impact . | . . . . . . . . . . . . . . . . . . . . . Slashing 3147 | . . . . . . 1169 . . 1773 . . . . . 205 . . . . . Piercing . | . . . . . . . . . . . . . . . . . . . . . Highest Corruption 9 | . 2 . 5 7 7 9 . . . . . 2 2 2 . . 1 3 3 3 Average Corruption 4 | . 1 . 5 6 7 8 . . . . . 2 2 1 . . 1 2 3 2 Corruption Purged 2 | . . . . . . . . . . . . . . 2 . . . . . . Corruption Blocked . | . . . . . . . . . . . . . . . . . . . . . Effects 203 | . 6 . 39 60 32 35 . . . . . 4 9 . . . . 9 7 2 Message Errors 39 | . 1 . 8 10 6 6 . . . . . 2 4 . . . . 1 1 . Matter Fused 47 | . 2 . 7 15 6 12 . . . . . . 2 . . . . 2 1 . Heat Flow Errors 26 | . 2 . 8 4 4 3 . . . . . 1 1 . . . . 2 1 . Energy Discharges 16 | . . . 2 4 3 5 . . . . . . . . . . . . 2 . Parts Rejected 4 | . . . . 1 1 1 . . . . . . . . . . . 1 . . Parts Fused 5 | . . . 2 2 . . . . . . . . 1 . . . . . . . Data Loss (minor) 28 | . 1 . 4 11 4 3 . . . . . 1 1 . . . . 1 1 1 Data Loss (major) 10 | . . . 3 3 3 . . . . . . . . . . . . . . 1 Misfires 9 | . . . 2 3 . 3 . . . . . . . . . . . 1 . . Alerts 1 | . . . . . . . . . . . . . . . . . . . 1 . Weapon Failures 18 | . . . 3 7 5 2 . . . . . . . . . . . 1 . . Overload Shots . | . . . . . . . . . . . . . . . . . . . . . Overflow Damage 405 | . . 5 15 9 15 22 . . 101 . 13 20 15 . 58 . 46 . 38 48 Projectiles 105 | . . . 15 9 15 . . . 4 . 13 17 10 . . . 2 . 16 4 Explosions 108 | . . 5 . . . . . . 42 . . 3 . . . . . . 22 36 Melee 192 | . . . . . . 22 . . 55 . . . 5 . 58 . 44 . . 8 Knockbacks 113 | . . 6 23 7 5 1 . 1 3 . 3 24 4 . . . 1 8 13 14 Impact 1 | . . . . . . . . . . . . . . . . . . . . 1 Kinetic 107 | . . 6 21 7 4 1 . 1 3 . 3 24 4 . . . 1 7 13 12 Secondary 5 | . . . 2 . 1 . . . . . . . . . . . . 1 . 1 Self-Inflicted Damage 588 | . 94 6 8 . . . . . 119 . . 244 . . . . . . . 117 Shots 14 | . 3 1 . . . . . . 4 . . 4 . . . . . . . 2 Rammed 27 | 2 1 5 2 . . . . . . . . 3 4 . . . 6 . . 4 Targets Rammed 29 | 2 1 6 2 . . . . . . . . 4 4 . . . 6 . . 4 Kicked . | . . . . . . . . . . . . . . . . . . . . . Crushed 2 | . . 1 . . . . . . . . . 1 . . . . . . . . Highest Temperature 451 | . 236 14 268 314 451 314 . . 331 . 75 448 85 66 . 116 134 296 150 336 Average Temperature 80 | . 50 4 43 84 113 78 . . 110 . 19 92 54 38 . 64 62 113 102 203 Received Heat Transfer 2343 | . 30 192 311 198 117 336 . . 151 . . 435 36 . . 27 . 314 67 129 Effects 8 | . . . . 1 . . . . 1 . . 1 . . . . . 3 . 2 Energy Bleed 2 | . . . . 1 . . . . 1 . . . . . . . . . . . Interference 5 | . . . . . . . . . . . . . . . . . . 3 . 2 Damage (minor) 1 | . . . . . . . . . . . . 1 . . . . . . . . Siege Activations 5 | . . . . . . . . . . . . 1 1 . . . . 2 1 . Total Turns 90 | . . . . . . . . . . . . 11 10 . . . . 52 17 . Longest Duration 29 | . . . . . . . . . . . . 11 10 . . . . 29 17 . Martial Activations . | . . . . . . . . . . . . . . . . . . . . . Shielding Activations . | . . . . . . . . . . . . . . . . . . . . . Robots Disrupted 1 | . 1 . . . . . . . . . . . . . . . . . . . Combat Hostiles 1 | . 1 . . . . . . . . . . . . . . . . . . . Robots Corrupted 4 | . . . . . . . . . . . . 1 1 . . . 1 . . 1 Combat Hostiles . | . . . . . . . . . . . . . . . . . . . . . Parts Fried 13 | . 2 . . . . . . . . . . 5 . . . . 5 . . 1 Impact Corruptions 5 | . . . . . . . . . . . . . 2 . . . 2 . . 1 Robots Melted . | . . . . . . . . . . . . . . . . . . . . . Combat Hostiles . | . . . . . . . . . . . . . . . . . . . . . Parts Melted . | . . . . . . . . . . . . . . . . . . . . . Heat Transferred 550 | . 300 . . . . . . . . . . 250 . . . . . . . . Parts Sabotaged . | . . . . . . . . . . . . . . . . . . . . . Parts Stolen . | . . . . . . . . . . . . . . . . . . . . . Parts Stripped . | . . . . . . . . . . . . . . . . . . . . . Power Chain Reactions 11 | . 7 . . . . . . . . . . 4 . . . . . . . . Alert | -11 -10 -9 -8 -8 -8 -8 -7 -7 -7 -6 -6 -5 -5 -5 -5 -4 -4 -4 -4 -4 ------- Run | Yrd Mat Mat Mat Gar Mat Gar Fac DSF Gar Fac DSF Fac Upp Upp Zhi Pro Fac Upp Upp War Maximum Alert Level 5 | . . 1 2 5 3 4 2 3 4 3 3 3 . . . . . . . . Low Security (%) 27 | 100 100 42 4 . . . . . . . . . . . . . 100 . . . Level 1 18 | . . 57 53 12 . . . . . . . 10 . . . . . . . . Level 2 25 | . . . 42 10 61 48 100 72 12 . 47 68 . . . . . . . . Level 3 14 | . . . . 27 38 36 . 27 17 100 52 21 . . . . . . . . Level 4 12 | . . . . 36 . 14 . . 70 . . . . . . . . . . . Level 5 2 | . . . . 14 . . . . . . . . . . . . . . . . High Security . | . . . . . . . . . . . . . . . . . . . . . Max Security . | . . . . . . . . . . . . . . . . . . . . . Sterilizations 2 | . . . . . . . . 1 . . 1 . . . . . . . . . Peak Influence 1781 | 5 125 356 480 1781 893 1260 661 748 1453 767 772 890 . . . . 52 . . . Initial 867 | . . . 115 259 867 437 661 466 561 762 536 405 . . . . . . . . Average 540 | . 33 200 371 1120 705 758 661 620 1144 762 666 588 . . . . 11 . . . Influence Increases 8234 | 10 469 704 1082 1572 570 863 5 302 912 5 236 903 75 . 10 20 121 195 140 40 Destroy 0b10 Robot/C 4820 | . 240 440 720 820 360 480 . 220 460 . 180 440 60 . . 20 60 160 120 40 Destroy 0b10 Robot/NC 360 | 10 40 45 60 5 50 25 . 5 30 . 10 60 . . 10 . 10 . . . Destroy Leader 720 | . 46 108 182 20 88 40 . 30 40 . 30 76 . . . . 20 20 20 . Allied During Kill 54 | . . . . 19 15 11 . 2 7 . . . . . . . . . . . Successful Hack 95 | . 19 21 10 . 16 14 5 . . 5 . 5 . . . . . . . . Disable Machine 375 | . 75 . 30 15 30 30 . 15 15 . 15 135 . . . . 15 . . . Anti-Garrison Action 1000 | . . . . 550 . 250 . . 200 . . . . . . . . . . . Destroy Structure 405 | . 34 45 35 83 11 13 . . 55 . 1 112 . . . . 16 . . . Lose Combat Pursuer 405 | . 15 45 45 60 . . . 30 105 . . 75 15 . . . . 15 . . Influence Decreases 8234 | 10 469 431 956 190 1678 276 599 220 207 691 231 797 698 255 10 20 121 136 157 82 Entered New Map 4152 | . . . 158 140 914 236 599 200 187 691 231 367 326 49 . . . . 12 42 Time Decay 3392 | 10 469 431 638 . 404 . . . . . . 410 362 206 10 20 121 126 145 40 Lost Part 120 | . . . 10 10 . 40 . . 20 . . 20 10 . . . . 10 . . Lost Ally 120 | . . . . 40 60 . . 20 . . . . . . . . . . . . Purge Threat 450 | . . . 150 . 300 . . . . . . . . . . . . . . . Squads Dispatched 24 | . 1 4 3 . 2 . 1 2 . . 1 9 . . . . 1 . . . Investigation 5 | . . . . . 1 . 1 . . . . 3 . . . . . . . . Extermination 2 | . . . . . . . . . . . . 1 . . . . 1 . . . Reinforcement 14 | . 1 4 3 . 1 . . 2 . . 1 2 . . . . . . . . Assault 3 | . . . . . . . . . . . . 3 . . . . . . . . Garrison . | . . . . . . . . . . . . . . . . . . . . . Intercept . | . . . . . . . . . . . . . . . . . . . . . Searches Triggered . | . . . . . . . . . . . . . . . . . . . . . Construction Impeded 1 | . . 1 . . . . . . . . . . . . . . . . . . Haulers Reinforced 1 | . . . . . . . . . . . . 1 . . . . . . . . Active Scanning Responses . | . . . . . . . . . . . . . . . . . . . . . Cargo Convoy Interrupts . | . . . . . . . . . . . . . . . . . . . . . Stealth | -11 -10 -9 -8 -8 -8 -8 -7 -7 -7 -6 -6 -5 -5 -5 -5 -4 -4 -4 -4 -4 --------- Run | Yrd Mat Mat Mat Gar Mat Gar Fac DSF Gar Fac DSF Fac Upp Upp Zhi Pro Fac Upp Upp War Distress Signals 16 | . 2 3 7 . . . . . . . . . . . . . . . . 4 Communications Jammed 6 | . . . . . . . . . . . . 2 . . . . 4 . . . Distress Signals . | . . . . . . . . . . . . . . . . . . . . . Times Spotted 371 | . 25 34 57 45 24 23 . 12 23 . 9 27 4 . . 1 5 8 7 67 Peak Tracking Total 22 | . 4 9 7 5 5 5 . 5 9 . 4 4 3 . . 1 3 4 4 22 Tactical Retreats 18 | . 1 2 2 1 . . . 1 4 . . 5 1 . . . . 1 . . Traps | -11 -10 -9 -8 -8 -8 -8 -7 -7 -7 -6 -6 -5 -5 -5 -5 -4 -4 -4 -4 -4 ------- Run | Yrd Mat Mat Mat Gar Mat Gar Fac DSF Gar Fac DSF Fac Upp Upp Zhi Pro Fac Upp Upp War Traps Triggered 30 | . 1 . 2 12 1 5 . 1 5 . . . . . . . 1 . . 2 Indirectly . | . . . . . . . . . . . . . . . . . . . . . Trap Hack Attempts . | . . . . . . . . . . . . . . . . . . . . . Triggered . | . . . . . . . . . . . . . . . . . . . . . Disarmed . | . . . . . . . . . . . . . . . . . . . . . Reprogrammed . | . . . . . . . . . . . . . . . . . . . . . Reused . | . . . . . . . . . . . . . . . . . . . . . Traps Extracted . | . . . . . . . . . . . . . . . . . . . . . Installed . | . . . . . . . . . . . . . . . . . . . . . Triggered . | . . . . . . . . . . . . . . . . . . . . . Machines | -11 -10 -9 -8 -8 -8 -8 -7 -7 -7 -6 -6 -5 -5 -5 -5 -4 -4 -4 -4 -4 ---------- Run | Yrd Mat Mat Mat Gar Mat Gar Fac DSF Gar Fac DSF Fac Upp Upp Zhi Pro Fac Upp Upp War Machines Disabled 41 | . 5 . 2 10 2 6 . 1 2 . 1 9 . 1 . . 1 . . 1 Max in Single Turn 3 | . 2 . 1 2 1 1 . 1 1 . 1 3 . 1 . . 1 . . 1 Garrison Access 1 | . . . . . . . . . . . . 1 . . . . . . . . Garrison Relay 11 | . . . . 6 . 4 . . 1 . . . . . . . . . . . Phase Generator 1 | . . . . 1 . . . . . . . . . . . . . . . . Machines Repaired . | . . . . . . . . . . . . . . . . . . . . . Machines Dismantled . | . . . . . . . . . . . . . . . . . . . . . Machines Sabotaged . | . . . . . . . . . . . . . . . . . . . . . Overloaded Fab Kills . | . . . . . . . . . . . . . . . . . . . . . Hacking | -11 -10 -9 -8 -8 -8 -8 -7 -7 -7 -6 -6 -5 -5 -5 -5 -4 -4 -4 -4 -4 --------- Run | Yrd Mat Mat Mat Gar Mat Gar Fac DSF Gar Fac DSF Fac Upp Upp Zhi Pro Fac Upp Upp War Machines Accessed 50 | . 8 4 8 2 7 3 1 . 1 1 . 7 1 . 4 . 2 . . 1 Terminals 36 | . 7 3 7 2 5 3 1 . 1 1 . 4 . . . . 2 . . . Fabricators . | . . . . . . . . . . . . . . . . . . . . . Repair Stations 5 | . 1 1 . . 1 . . . . . . 2 . . . . . . . . Recycling Units . | . . . . . . . . . . . . . . . . . . . . . Scanalyzers . | . . . . . . . . . . . . . . . . . . . . . Garrison Access 3 | . . . 1 . 1 . . . . . . 1 . . . . . . . . Total Hacks 133 | . 28 14 23 2 17 5 4 . 2 1 . 14 1 . 17 . 4 . . 1 Successful 73 | . 19 8 10 1 10 1 1 . . 1 . 1 1 . 17 . 2 . . 1 Failed 60 | . 9 6 13 1 7 4 3 . 2 . . 13 . . . . 2 . . . Catastrophic 11 | . 1 1 3 . . 1 . . . . . 4 . . . . 1 . . . Database Lockouts . | . . . . . . . . . . . . . . . . . . . . . Manual 72 | . 19 10 18 . 15 . . . . . . 7 . . . . 3 . . . Terminals 91 | . 22 10 20 2 14 5 4 . 2 1 . 7 . . . . 4 . . . Fabricators . | . . . . . . . . . . . . . . . . . . . . . Repair Stations 17 | . 6 4 . . 2 . . . . . . 5 . . . . . . . . Recycling Units . | . . . . . . . . . . . . . . . . . . . . . Scanalyzers . | . . . . . . . . . . . . . . . . . . . . . Garrison Access 6 | . . . 3 . 1 . . . . . . 2 . . . . . . . . Terminal Hacks 37 | . 4 1 4 1 3 1 1 . . 1 . 1 1 . 17 . 1 . . 1 Record 5 | . . . . . . . . . . . . . . . 5 . . . . . Part Schematic 4 | . . . . . . . . . . . . . . . 4 . . . . . Robot Analysis 8 | . 2 1 1 . . . . . . . . . . . 4 . . . . . Prototype ID Bank 6 | . . . 1 . 1 . . . . . . . . . 4 . . . . . Open Door 2 | . . . . . . . . . . . . . 1 . . . . . . 1 Open DSF 3 | . . . . . . . 1 . . 1 . 1 . . . . . . . . Terminal Index 1 | . 1 . . . . . . . . . . . . . . . . . . . Unreport Threat 4 | . . . 1 . 2 . . . . . . . . . . . 1 . . . Locate Traps 2 | . 1 . 1 . . . . . . . . . . . . . . . . . Garrison Registry 1 | . . . . . . 1 . . . . . . . . . . . . . . Patrol Navigation 1 | . . . . 1 . . . . . . . . . . . . . . . . Fabricator Hacks . | . . . . . . . . . . . . . . . . . . . . . Repair Station Hacks 10 | . 6 4 . . . . . . . . . . . . . . . . . . Scan Component 5 | . 3 2 . . . . . . . . . . . . . . . . . . Repair 5 | . 3 2 . . . . . . . . . . . . . . . . . . Recycling Unit Hacks . | . . . . . . . . . . . . . . . . . . . . . Scanalyzer . | . . . . . . . . . . . . . . . . . . . . . Garrison Access Hacks 2 | . . . 1 . 1 . . . . . . . . . . . . . . . Unlock Access 2 | . . . 1 . 1 . . . . . . . . . . . . . . . Unauthorized Hacks 24 | . 9 3 5 . 6 . . . . . . . . . . . 1 . . . Terminals 23 | . 9 3 5 . 5 . . . . . . . . . . . 1 . . . Track 1 | . . . . . . . . . . . . . . . . . 1 . . . Botnet 3 | . 3 . . . . . . . . . . . . . . . . . . . Operators 1 | . . . 1 . . . . . . . . . . . . . . . . . Skim 18 | . 6 3 4 . 5 . . . . . . . . . . . . . . . Fabricators . | . . . . . . . . . . . . . . . . . . . . . Repair Stations 1 | . . . . . 1 . . . . . . . . . . . . . . . Patch 1 | . . . . . 1 . . . . . . . . . . . . . . . Recycling Units . | . . . . . . . . . . . . . . . . . . . . . Scanalyzers . | . . . . . . . . . . . . . . . . . . . . . Garrison Access . | . . . . . . . . . . . . . . . . . . . . . Data Cores Recovered 2 | . 1 . . . . . . . . . . 1 . . . . . . . . Used 1 | . . . . . . . . . . . . 1 . . . . . . . . Hacking Detections 39 | . 6 4 8 2 5 2 1 . 1 1 . 7 . . . . 2 . . . Full Trace Events 6 | . . . . . . 1 1 . 1 . . 3 . . . . . . . . Feedback Events . | . . . . . . . . . . . . . . . . . . . . . Feedback Blocked . | . . . . . . . . . . . . . . . . . . . . . Robot Schematics Acquired . | . . . . . . . . . . . . . . . . . . . . . Robots Built . | . . . . . . . . . . . . . . . . . . . . . Authchips . | . . . . . . . . . . . . . . . . . . . . . Time . | . . . . . . . . . . . . . . . . . . . . . Total Robot Build Rating . | . . . . . . . . . . . . . . . . . . . . . Part Schematics Acquired 4 | . . . . . . . . . . . . . . . 4 . . . . . Parts Built . | . . . . . . . . . . . . . . . . . . . . . Authchips . | . . . . . . . . . . . . . . . . . . . . . Time . | . . . . . . . . . . . . . . . . . . . . . Total Part Build Rating . | . . . . . . . . . . . . . . . . . . . . . Parts Repaired 5 | . 3 2 . . . . . . . . . . . . . . . . . . Time 142 | . 78 64 . . . . . . . . . . . . . . . . . . Parts Recycled . | . . . . . . . . . . . . . . . . . . . . . Recycled Matter . | . . . . . . . . . . . . . . . . . . . . . Retrieved Matter . | . . . . . . . . . . . . . . . . . . . . . Retrieved Components . | . . . . . . . . . . . . . . . . . . . . . Parts Scanalyzed . | . . . . . . . . . . . . . . . . . . . . . Part Schematics Acquired . | . . . . . . . . . . . . . . . . . . . . . Parts Damaged . | . . . . . . . . . . . . . . . . . . . . . Bothacking | -11 -10 -9 -8 -8 -8 -8 -7 -7 -7 -6 -6 -5 -5 -5 -5 -4 -4 -4 -4 -4 ------------ Run | Yrd Mat Mat Mat Gar Mat Gar Fac DSF Gar Fac DSF Fac Upp Upp Zhi Pro Fac Upp Upp War Used RIF Installer . | . . . . . . . . . . . . . . . . . . . . . Robots Hacked . | . . . . . . . . . . . . . . . . . . . . . Non-combat . | . . . . . . . . . . . . . . . . . . . . . Combat . | . . . . . . . . . . . . . . . . . . . . . Robot Hacks Applied . | . . . . . . . . . . . . . . . . . . . . . Relay Couplers Released 47 | . . . . 27 . 14 . . 5 . . 1 . . . . . . . . Machine Destruction 43 | . . . . 23 . 14 . . 5 . . 1 . . . . . . . . Programmers 4 | . . . . 4 . . . . . . . . . . . . . . . . Fabnet Peak Effective % . | . . . . . . . . . . . . . . . . . . . . . Robots Rewired 9 | . . . . 9 . . . . . . . . . . . . . . . . Allies Hacked . | . . . . . . . . . . . . . . . . . . . . . Hacks Repelled . | . . . . . . . . . . . . . . . . . . . . . Allies | -11 -10 -9 -8 -8 -8 -8 -7 -7 -7 -6 -6 -5 -5 -5 -5 -4 -4 -4 -4 -4 -------- Run | Yrd Mat Mat Mat Gar Mat Gar Fac DSF Gar Fac DSF Fac Upp Upp Zhi Pro Fac Upp Upp War Total Allies 11 | . . . . 9 . 1 . . 1 . . . . . . . . . . . Largest Group 6 | . . . . 6 6 1 1 1 1 . . . . . . . . . . . Highest-Rated Group 120 | . . . . 120 120 31 31 31 39 . . . . . . . . . . . Highest-Rated Ally 40 | . . . . 40 40 31 31 31 39 . . . . . . . . . . . Initial Warlord ECA Mod 486 | . . . . . 11 11 16 16 26 30 30 39 39 39 39 38 38 38 38 38 Total Orders . | . . . . . . . . . . . . . . . . . . . . . Ally Attacks 85 | . . . . 12 16 11 . 3 43 . . . . . . . . . . . Total Damage 1081 | . . . . 270 241 170 . 63 337 . . . . . . . . . . . Kills 16 | . . . . 4 4 2 . . 6 . . . . . . . . . . . Allies Corrupted . | . . . . . . . . . . . . . . . . . . . . . Allies Melted . | . . . . . . . . . . . . . . . . . . . . . Intel | -11 -10 -9 -8 -8 -8 -8 -7 -7 -7 -6 -6 -5 -5 -5 -5 -4 -4 -4 -4 -4 ------- Run | Yrd Mat Mat Mat Gar Mat Gar Fac DSF Gar Fac DSF Fac Upp Upp Zhi Pro Fac Upp Upp War Active Infowar (turns) 7554 | 6 687 914 . . . . . 7 . 9 303 994 825 587 358 521 589 77 407 1270 Sensors 3983 | . . . . . . . . . . . . . 693 587 358 501 108 59 407 1270 Seismic 467 | 6 461 . . . . . . . . . . . . . . . . . . . T.N.C. 4936 | . 226 914 . . . . . . . . . 994 825 587 358 521 511 . . . Jamming 1315 | . . . . . . . . 7 . 9 303 413 160 . . . 384 39 . . Robot Analysis Total 8 | . 2 1 1 . . . . . . . . . . . 4 . . . . . Derelict Logs Recovered 5 | . . . . . . . . . . . . . 1 2 . . . 1 1 . Drone Launches . | . . . . . . . . . . . . . . . . . . . . . Drone Recoveries . | . . . . . . . . . . . . . . . . . . . . . Exploration | -11 -10 -9 -8 -8 -8 -8 -7 -7 -7 -6 -6 -5 -5 -5 -5 -4 -4 -4 -4 -4 ------------- Run | Yrd Mat Mat Mat Gar Mat Gar Fac DSF Gar Fac DSF Fac Upp Upp Zhi Pro Fac Upp Upp War Turns Passed 18549 | 112 2281 1630 2271 2086 970 1086 8 294 1229 10 303 994 825 587 358 521 589 430 407 1558 Spaces Moved 8586 | 43 714 649 1169 1072 515 499 3 130 540 6 109 455 459 332 210 313 321 237 154 656 Core 61 | 3 . . . . . . . . . . . . . . . . . . . 58 Treads 3959 | 40 714 395 14 . 1 4 . . 140 6 109 455 459 332 210 313 287 18 154 308 Legs . | . . . . . . . . . . . . . . . . . . . . . Wheels 4566 | . . 254 1155 1072 514 495 3 130 400 . . . . . . . 34 219 . 290 Hover . | . . . . . . . . . . . . . . . . . . . . . Flight . | . . . . . . . . . . . . . . . . . . . . . Fastest Speed 50 | 50 160 135 135 150 150 150 150 150 150 160 160 160 160 160 160 160 130 130 240 50 Average Speed 172 | 152 281 198 154 150 150 150 150 150 173 160 160 160 160 160 160 160 156 138 240 176 Slowest Speed 560 | 160 320 240 560 150 560 240 150 150 240 160 160 160 160 160 160 160 175 240 240 320 Overloaded Moves . | . . . . . . . . . . . . . . . . . . . . . Propulsion Burnouts . | . . . . . . . . . . . . . . . . . . . . . Robots Hopped . | . . . . . . . . . . . . . . . . . . . . . Potential Cave-ins . | . . . . . . . . . . . . . . . . . . . . . Cave-ins Triggered . | . . . . . . . . . . . . . . . . . . . . . Teleports 1 | . . . . . . . . . . . . . . . . . . . . 1 Exploration Rate (%) 51 | 4 87 56 83 86 56 55 . 80 45 1 87 19 63 48 60 42 11 43 35 62 Regions Visited 20 Branch Regions 7 Pre-discovered Areas 6 | . 1 . . . . . . . . . . . 1 1 3 . . . . . Known Exits Taken 7 | . 1 . 1 . 1 . 1 . . 1 . . . . . . 1 . 1 . Unknown Exits Taken 8 | 1 . 1 . . . . . . . . . 1 1 1 1 1 . 1 . . Scrap Searched 9 | . . . . . . . . . . . . . 2 2 . 4 . . 1 . Spaces Dug 65 | . 9 25 9 . . . . . 16 . . . . . . . 2 . . 4 Terrain Destroyed 419 | . 32 41 29 75 9 11 . . 48 . 1 78 5 1 . 4 8 21 21 35 Melee 2 | . . . . . . . . . . . . . . . . . 2 . . . Projectile 88 | . . . 6 . 9 . . . . . . 19 5 1 . 4 6 21 5 12 AOE 328 | . 32 41 23 75 . 11 . . 48 . . 59 . . . . . . 16 23 Terrain Rammed . | . . . . . . . . . . . . . . . . . . . . . Walls Destroyed . | . . . . . . . . . . . . . . . . . . . . . Machines Disabled . | . . . . . . . . . . . . . . . . . . . . . Actions | -11 -10 -9 -8 -8 -8 -8 -7 -7 -7 -6 -6 -5 -5 -5 -5 -4 -4 -4 -4 -4 --------- Run | Yrd Mat Mat Mat Gar Mat Gar Fac DSF Gar Fac DSF Fac Upp Upp Zhi Pro Fac Upp Upp War Total 11124 | 73 920 888 1464 1414 633 700 7 207 749 7 190 584 522 383 227 322 376 294 174 990 Wait 891 | . 129 94 82 73 42 46 . . 20 . 43 11 36 28 . . . 26 9 252 Move 8569 | 43 713 648 1169 1071 515 498 2 129 539 5 108 454 458 331 209 312 320 236 153 656 Hop . | . . . . . . . . . . . . . . . . . . . . . Pick Up 189 | 6 19 28 29 5 5 11 1 14 29 . 4 10 3 2 2 . 7 1 1 12 Fast Attach 69 | 6 2 2 10 2 3 1 . 8 4 . . 6 1 6 5 2 6 2 . 3 Attach 55 | 1 3 3 4 2 1 6 2 . 13 2 1 7 1 1 . . 1 2 . 5 Detach 2 | . . . . . . . . . . . . 2 . . . . . . . . Swap 166 | 1 7 20 22 4 8 13 1 3 16 . 8 18 5 5 2 2 9 9 3 10 Drop 243 | . 9 26 51 9 13 9 1 19 39 . 4 13 4 8 6 2 15 1 . 14 Fire 643 | 15 37 61 95 98 46 75 . 34 30 . 22 59 10 1 . 4 10 17 8 21 Melee 71 | . . . . . . 25 . . 27 . . . . 1 3 . 2 . . 13 Ram 5 | . . . 2 . . . . . . . . . . . . . . . . 3 Kick . | . . . . . . . . . . . . . . . . . . . . . Crush 23 | 1 1 6 . . . . . . . . . 4 4 . . . 6 . . 1 Escape Stasis 112 | . . . . 64 . 16 . . 32 . . . . . . . . . . . Rewire 86 | . . . . 86 . . . . . . . . . . . . . . . . Trap . | . . . . . . . . . . . . . . . . . . . . . Miscellaneous . | . . . . . . . . . . . . . . . . . . . . . Route ------- -11/Scrapyard -10/Materials (discovered 5 exits: *Mat x3 / *Min / *Sub) -9/Materials -8/Materials (discovered 5 exits: *Fac x3 / *Sto / Gar) -8/Garrison (discovered 4 exits: *Mat x4) -8/Materials (discovered 3 exits: *Fac / *Sto / Gar) -8/Garrison (discovered 3 exits: *Fac x3) -7/Factory -7/DSF -7/Garrison (discovered 2 exits: *Fac x2) -6/Factory -6/DSF -5/Factory -5/Upper Caves -5/Upper Caves -5/Zhirov -4/Proximity Caves -4/Factory (discovered 2 exits: *Res / *Upp) -4/Upper Caves -4/Upper Caves -4/Warlord History --------- Turn | Location | Event 2 | -11/Scrapyard | Met Revision 17 6 | -11/Scrapyard | Discovered new exit (range 14) 113 | -11/Scrapyard | Entered Materials 269 | -10/Materials | Discovered new exit (range 16) 318 | -10/Materials | Build established: Mutant 1032 | -10/Materials | Discovered new exit (range 16) 1443 | -10/Materials | Identified exit to Materials 1443 | -10/Materials | Identified exit to Subcaves 1443 | -10/Materials | Identified exit to Mines 1553 | -10/Materials | Learned location of 1 exit from Storage 1592 | -10/Materials | Learned 4 Subcaves zone layouts 2015 | -10/Materials | Repaired Lgt. Treads 2043 | -10/Materials | Repaired Lgt. Treads 2097 | -10/Materials | Repaired Lgt. Assault Rifle 2394 | -10/Materials | Entered another Materials area 2394 | -9/Materials | Evolved 2 slots: Propulsion x1, Utility x1 3386 | -9/Materials | Build established: Scavenger-Mutant 3716 | -9/Materials | Discovered new exit (range 16) 3877 | -9/Materials | Repaired Hvy. Assault Rifle 3900 | -9/Materials | Build established: Mutant 3913 | -9/Materials | Repaired Hvy. Assault Rifle 4024 | -9/Materials | Entered another Materials area 4024 | -8/Materials | Evolved 2 slots: Propulsion x1, Weapon x1 4025 | -8/Materials | Identified exit to Storage 4904 | -8/Materials | Build established: Gunner 5329 | -8/Materials | Discovered new exit (range 12) 5493 | -8/Materials | Discovered new exit (range 8) 6294 | -8/Materials | Discovered new exit (range 15) 6295 | -8/Materials | Identified exit to Garrison 6295 | -8/Materials | Entered Garrison 6343 | -8/Garrison | Triggered checkpoint 6375 | -8/Garrison | Triggered checkpoint 6593 | -8/Garrison | Triggered checkpoint 6593 | -8/Garrison | Triggered checkpoint 6721 | -8/Garrison | Discovered new exit (range 12) 6730 | -8/Garrison | Garrison Relay disabled 6753 | -8/Garrison | Triggered checkpoint 6810 | -8/Garrison | Garrison Relay disabled 6911 | -8/Garrison | Discovered new exit (range 14) 6954 | -8/Garrison | Triggered checkpoint 7000 | -8/Garrison | Garrison Relay disabled 7331 | -8/Garrison | Triggered checkpoint 7391 | -8/Garrison | Garrison Relay disabled 7399 | -8/Garrison | Triggered checkpoint 7424 | -8/Garrison | Discovered new exit (range 5) 7598 | -8/Garrison | Phase Generator disabled 7611 | -8/Garrison | Discovered new exit (range 9) 7659 | -8/Garrison | Build established: Tank 7713 | -8/Garrison | Triggered checkpoint 7949 | -8/Garrison | Triggered checkpoint 8087 | -8/Garrison | Garrison Relay disabled 8095 | -8/Garrison | Garrison Relay disabled 8369 | -8/Garrison | Build established: Commander-Tank 8381 | -8/Garrison | Entered Materials 8381 | -8/Materials | Accompanied by 6 allies 8515 | -8/Materials | Lost 3 allies 8773 | -8/Materials | Build established: Tank 8779 | -8/Materials | Discovered new exit (range 13) 8932 | -8/Materials | Discovered exit to Storage (range 11) 9351 | -8/Materials | Identified exit to Garrison 9351 | -8/Materials | Entered Garrison 9546 | -8/Garrison | Spotted B-75 Beast 9557 | -8/Garrison | Core integrity fell below 50% 9583 | -8/Garrison | Destroyed B-75 Beast 9695 | -8/Garrison | Triggered checkpoint 9862 | -8/Garrison | Build established: Scavenger-Gunner 9903 | -8/Garrison | Garrison Relay disabled 9932 | -8/Garrison | Garrison Relay disabled 9954 | -8/Garrison | Discovered new exit (range 13) 9961 | -8/Garrison | Discovered new exit (range 12) 9961 | -8/Garrison | Discovered new exit (range 55) 9961 | -8/Garrison | Discovered new exit (range 68) 10071 | -8/Garrison | Triggered checkpoint 10089 | -8/Garrison | Garrison Relay disabled 10155 | -8/Garrison | Door terminal overloaded 10156 | -8/Garrison | Rescued a captive Derelict 10281 | -8/Garrison | Triggered checkpoint 10286 | -8/Garrison | Core integrity fell below 20% 10395 | -8/Garrison | Triggered checkpoint 10437 | -8/Garrison | Entered Factory 10437 | -7/Factory | Accompanied by 1 ally 10437 | -7/Factory | Evolved 2 slots: Utility x2 10445 | -7/Factory | Identified exit to DSF 10445 | -7/Factory | Entered DSF 10445 | -7/DSF | Accompanied by 1 ally 10469 | -7/DSF | Additional patrols routed to DSF 10620 | -7/DSF | Discovered new exit (range 15) 10659 | -7/DSF | Sterilization system engaged 10679 | -7/DSF | Ambient heat levels rising (+10) 10694 | -7/DSF | Ambient heat levels rising (+10) 10709 | -7/DSF | Ambient heat levels rising (+10) 10724 | -7/DSF | Ambient heat levels rising (+10) 10739 | -7/DSF | Ambient heat levels rising (+10) 10739 | -7/DSF | Entered Garrison 10924 | -7/Garrison | Destroyed 11 combat bots 10953 | -7/Garrison | Triggered checkpoint 11089 | -7/Garrison | Rescued a captive Derelict 11137 | -7/Garrison | Triggered checkpoint 11159 | -7/Garrison | Garrison Relay disabled 11189 | -7/Garrison | Discovered new exit (range 13) 11421 | -7/Garrison | Triggered checkpoint 11765 | -7/Garrison | Discovered new exit (range 14) 11849 | -7/Garrison | Build established: Scavenger-Mutant 11968 | -7/Garrison | Entered Factory 11968 | -6/Factory | Evolved 2 slots: Power x1, Utility x1 11977 | -6/Factory | Identified exit to DSF 11978 | -6/Factory | Entered DSF 12033 | -6/DSF | Additional patrols routed to DSF 12092 | -6/DSF | Discovered new exit (range 15) 12176 | -6/DSF | Build established: Scavenger-Tank 12252 | -6/DSF | Sterilization system engaged 12272 | -6/DSF | Ambient heat levels rising (+10) 12281 | -6/DSF | Entered Factory 12281 | -5/Factory | Evolved 2 slots: Utility x1, Weapon x1 13132 | -5/Factory | Destroyed 10 combat bots 13181 | -5/Factory | First assault squad dispatched 13244 | -5/Factory | Discovered new exit (range 9) 13275 | -5/Factory | Entered Upper Caves 13346 | -5/Upper Caves | Met a Warlord Commander 13347 | -5/Upper Caves | Learned location of Warlord (-4) 13348 | -5/Upper Caves | Warlord Commander delivered Encrypted Comm Array 13354 | -5/Upper Caves | Found Encrypted Comm Array 13375 | -5/Upper Caves | Attracted the attention of an 0b10 checkpoint 13879 | -5/Upper Caves | Learned location of 1 exit from Factory 13965 | -5/Upper Caves | Encountered a Warlord checkpoint 14087 | -5/Upper Caves | Discovered new exit (range 8) 14100 | -5/Upper Caves | Entered another Upper Caves area 14446 | -5/Upper Caves | Found Alien Artifact 14568 | -5/Upper Caves | Build established: Derelict-Tank 14669 | -5/Upper Caves | Discovered new exit (range 9) 14687 | -5/Upper Caves | Entered Zhirov 14687 | -5/Zhirov | Discovered new exit (range 3) 14745 | -5/Zhirov | Learned location of Quarantine (-2) 14745 | -5/Zhirov | Learned location of Testing (-3) 14745 | -5/Zhirov | Learned location of Command (-1) 14789 | -5/Zhirov | Found Alien Artifact 14789 | -5/Zhirov | Identified Integrated Reactor 14789 | -5/Zhirov | Installed Integrated Reactor, increased core energy generation (+10) 14864 | -5/Zhirov | Found Alien Artifact 15045 | -5/Zhirov | Entered Proximity Caves 15387 | -4/Proximity Caves | Attracted the attention of an 0b10 checkpoint 15511 | -4/Proximity Caves | Discovered new exit (range 16) 15566 | -4/Proximity Caves | Entered Factory 15566 | -4/Factory | Evolved 2 slots: Propulsion x2 15567 | -4/Factory | Identified exit to Upper Caves 15568 | -4/Factory | Identified exit to Research 15992 | -4/Factory | Build established: Scavenger-Tank 16077 | -4/Factory | Found Hvy. Insulated Plating 16155 | -4/Factory | Entered Upper Caves 16289 | -4/Upper Caves | Attracted the attention of an 0b10 checkpoint 16497 | -4/Upper Caves | Discovered new exit (range 15) 16585 | -4/Upper Caves | Entered another Upper Caves area 16935 | -4/Upper Caves | Identified exit to Warlord 16992 | -4/Upper Caves | Entered Warlord 17008 | -4/Warlord | Build established: Derelict-Tank 17072 | -4/Warlord | System corruption cleaned by Quarantine Array 17594 | -4/Warlord | Build established: Scavenger-Tank 17643 | -4/Warlord | Warlord's base attacked by MAIN.C 17669 | -4/Warlord | Found Prototype Energy Cannon 17672 | -4/Warlord | Identified Vortex Cannon 17674 | -4/Warlord | Found Vortex Cannon 17681 | -4/Warlord | Found Prototype Energy Cannon 17682 | -4/Warlord | Identified Vortex Driver 17686 | -4/Warlord | Found Vortex Driver 17790 | -4/Warlord | Found Prototype Reactor 17790 | -4/Warlord | Identified Vortex Chain Reactor 17795 | -4/Warlord | Found Prototype Processor 17795 | -4/Warlord | Identified Exp. Targeting Computer 17802 | -4/Warlord | Found Prototype Hackware 17808 | -4/Warlord | Found Prototype Device 17808 | -4/Warlord | Identified Thermal Barrier 17960 | -4/Warlord | Met Warlord 17993 | -4/Warlord | Warlord forces counterattacked 18068 | -4/Warlord | Build established: Tank 18086 | -4/Warlord | Spotted Executioner 18096 | -4/Warlord | Spotted Executioner 18097 | -4/Warlord | Spotted Striker 18116 | -4/Warlord | Attacked by Warlord forces 18118 | -4/Warlord | Identified Transdimensional Reconstructor 18118 | -4/Warlord | Warped through subspace 18144 | -4/Warlord | Lost 9 allies 18318 | -4/Warlord | Warlord base infiltrated, sounded retreat 18418 | -4/Warlord | Build established: Scavenger-Tank 18485 | -4/Warlord | Spotted 4D-DU7(K) 18493 | -4/Warlord | Spotted 3W-HZU(K) 18507 | -4/Warlord | Released all parts (11) 18540 | -4/Warlord | Core integrity fell below 50% 18545 | -4/Warlord | Spotted B-90 Cyclops 18546 | -4/Warlord | Core integrity fell below 20% 18546 | -4/Warlord | Spotted B-86 Titan 18550 | -4/Warlord | Destroyed by B-86 Titan with Matter Neutralizer Last Messages --------------- 18511_ The unstable cave ceiling collapses. 18514_ Knocked back. 18526_ System corrupted: Substantial component data lost. 18527_ Triggered Fire Trap. 18527_ Burning plasma bursts from the floor. 18533_ ANNOUNCEMENT: MAIN.C reinforcements approaching through caves, arriving soon. 18533_ Triggered Fire Trap. 18533_ Burning plasma bursts from the floor. 18534_ Slammed into WD-S1B(g). 18536_ Penetrated by HV Slug. 18538_ 5F-BZQ(p) resets 4D-DU7(K), system corruption cleaned. 18539_ Imp. Heavy Treads destroyed. 18539_ Penetrated by HV Slug. 18539_ HV Slug penetrates Wall. 18539_ Knocked back. 18543_ ANNOUNCEMENT: Detected 3 Programmer squads, 1 Behemoth squad. 18545_ The unstable cave ceiling collapses. 18545_ Knocked back. 18550_ The unstable cave ceiling collapses. Map ----- +----------------------------------------------------+ | ????????######## ##??????????????????? | | ???????????????# #???????????????????? | | ???????????????# #???????????????????? | | ???????????????## % #???????????????????? | | ????????????????# #### % #???????????????????? | | ????????????????# #??# #???????????????????? | | ????????????##### #### #####???????????????????? | | ????????????# % #???????????????????????? | | ????????????# #???????????????????????? | | ????????????# # %##??????????????????????? | | ????????????#% # K ##?????????????????????? | | ????????????# ] % # ##????????????????????? | | ????#########]!= #????????????????????? | | ????#!====#!=! ]! #????????????????????? | | ????# =#!!=%!= # #???"???????????????? | | ????# ! ##*]!] # ##??""???????????????? | | ????# *##*!##% #%% #######""#??????????????? | | ????#! * #!!]/ ## # # # ##""##?????????????? | | ????##" "## # # # ! # ##"" # ######?????? | | ???## X## ## = "" ! ####### | | ???# #### ]= "" %"=""%"# | | ???######+##;;; /! *"" %[%%*# | | #???????# == = =bb %!==!% | | #???????# ! %= % %*BB % = g ==%!*! | | ######### %/ BB g! !!%%!= | | / @ / ! = BB%= =*!*=%! | | # ; [" B = !%*""# | | # # # d"" ] " "%! "# | | + # ; "" # ######### | | ############ #### ###### ""# # #?????????? | | #??????????# #?????#""# # ?#?????????? | | #????????### #?????#""#?#????????????? | | ##########X# %= #?????#""#??????????????? | | ! #???????????????????????? | | ##### #???????????????????????? | | #???# #???????????????????????? | | #############+###???# #???????????????????????? | | ############ ????# #???????????????????????? | | """""""## ??# #???????????????????????? | | [ """"## ## #???????????????????????? | | !]""""## """"" #? ????????????????????????? | | """ ## """"" #?????????????????????????????? | | ## """"" #?????????????????????????????? | | "] ## #?????????????????????????????? | | """## """"??#?????????????????????????????? | | X""""## ????????????????????????????????????? | | """" """## ????????????????????????????????????? | | """"""""""## ????????????????????????????????????? | | #########??#?????????????????????????????????????? | | ?????????????????????????????????????????????????? | +----------------------------------------------------+ Best States ------------- Heat Dissipation 120 Energy Generation 65 Energy Capacity 700 Matter Stores 300 Matter Capacity 300 Sight Range 16 Robot Scan Range 16 Terrain Scan Density 10 Jamming Range 12 Base Temperature (-) 200 Armor Coverage 1200 Resistance: KI 30 Resistance: TH 50 Resistance: EM 30 Evasion (%) 50 Targeting Accuracy 12 Armor Integrity Analysis 30 Recoil Reduction 6 Defensive Hacking 10 Item Schematics ----------------- Assault Drone Bay | -5/Zhirov | Free Exp. Optical Array | -5/Zhirov | Free Exp. Heat Sink | -5/Zhirov | Free Imp. Arc Thrower | -5/Zhirov | Free Robot Schematics ------------------ None Fabricated ------------ Nothing Repaired ---------- Lgt. Treads | 14% | -10/Materials Lgt. Treads | 33% | -10/Materials Lgt. Assault Rifle | 37% | -10/Materials Hvy. Assault Rifle | 57% | -9/Materials Hvy. Assault Rifle | 63% | -9/Materials Alien Tech Used ----------------- Integrated Reactor Transdimensional Reconstructor Achievements -------------- None Challenges ------------ None Game ------ Seed UtilityVampiricLink Manual? 0 Play Time 01:41:42 Cumulative 938.7 hours Start 2025.06.29 @ 22:31:17 End 2025.06.30 @ 00:08:35 Sessions 1 Manual Loads 0 Difficulty Rogue Special Mode None Game No. 1572 Rogue 1572 Adventurer 0 Explorer 0 Win Type - Total 92 Types 54/1/16/15/4/0/0/1/0/1 Lore% 92 Gallery% 84 Achievement% 86 Wizard Run 0 Options --------- Layout 0 ASCII 1 Keyboard 0 Movement Numpad Keybinds 1 Fullscreen 2 Font 18/SmallcapsGlow Map View 76x50 Zoom Use 0% Tactical HUD 1 Map Filters NONE Filters NONE Steam 1 RUN: 11d77640-1044-44c0-b7a5-96f650aebdf6